[Event "January 9 Early 2024"]
[Site "https://www.chess.com"]
[Date "2024.01.11"]
[Round "3"]
[White "Grischuk, Alexander"]
[Black "Hambleton, Aman"]
[Result "1-0"]
[Board "284"]
[TimeControl "180+1"]
[WhiteFideId "4126025"]
[BlackFideId "2606577"]
[WhiteElo "3072"]
[BlackElo "2771"]
[WhiteTeam "RUS"]
[BlackTeam "CAN"]
[WhiteClock "0:00:07"]
[BlackClock "0:00:01"]

1. d4 {[%clk 0:03:00]}  Nf6 {[%clk 0:02:53]} 2. c4 {[%clk 0:03:00]}  e6 {[%clk 0:02:53]} 3. Bg5 {[%clk 0:02:59]}  Bb4+ {[%clk 0:02:34]} 4. Nd2 {[%clk 0:02:59]}  h6 {[%clk 0:02:33]} 5. Bh4 {[%clk 0:02:58]}  g5 {[%clk 0:02:04]} 6. Bg3 {[%clk 0:02:57]}  Ne4 {[%clk 0:02:03]} 7. Nf3 {[%clk 0:02:57]}  Nxg3 {[%clk 0:01:33]} 8. hxg3 {[%clk 0:02:56]}  b6 {[%clk 0:01:18]} 9. Qc2 {[%clk 0:02:49]}  Bb7 {[%clk 0:01:16]} 10. O-O-O {[%clk 0:02:49]}  Bf8 {[%clk 0:01:12]} 11. e3 {[%clk 0:02:34]}  d6 {[%clk 0:00:49]} 12. Kb1 {[%clk 0:02:18]}  Nd7 {[%clk 0:00:48]} 13. Bd3 {[%clk 0:02:18]}  Bg7 {[%clk 0:00:41]} 14. Be4 {[%clk 0:02:02]}  c6 {[%clk 0:00:35]} 15. Bd3 {[%clk 0:01:48]}  Qe7 {[%clk 0:00:20]} 16. Nh2 {[%clk 0:01:23]}  O-O-O {[%clk 0:00:12]} 17. f4 {[%clk 0:01:21]}  Kb8 {[%clk 0:00:04]} 18. Rhe1 {[%clk 0:01:20]}  h5 {[%clk 0:00:02]} 19. Ne4 {[%clk 0:01:11]}  gxf4 {[%clk 0:00:02]} 20. gxf4 {[%clk 0:01:12]}  h4 {[%clk 0:00:02]} 21. Nf3 {[%clk 0:01:05]}  d5 {[%clk 0:00:01]} 22. cxd5 {[%clk 0:01:03]}  cxd5 {[%clk 0:00:01]} 23. Neg5 {[%clk 0:00:53]}  Rc8 {[%clk 0:00:01]} 24. Qe2 {[%clk 0:00:53]}  f6 {[%clk 0:00:01]} 25. Nh3 {[%clk 0:00:53]}  e5 {[%clk 0:00:01]} 26. Bf5 {[%clk 0:00:53]}  Rc7 {[%clk 0:00:01]} 27. Qf2 {[%clk 0:00:50]}  Bc8 {[%clk 0:00:01]} 28. Nxh4 {[%clk 0:00:48]}  Qd6 {[%clk 0:00:01]} 29. Nf3 {[%clk 0:00:46]}  e4 {[%clk 0:00:01]} 30. Nd2 {[%clk 0:00:44]}  b5 {[%clk 0:00:02]} 31. Nb3 {[%clk 0:00:40]}  Nb6 {[%clk 0:00:02]} 32. Bxc8 {[%clk 0:00:41]}  Rhxc8 {[%clk 0:00:02]} 33. Nc5 {[%clk 0:00:40]}  Na4 {[%clk 0:00:02]} 34. f5 {[%clk 0:00:38]}  Nxc5 {[%clk 0:00:02]} 35. dxc5 {[%clk 0:00:38]}  Qxc5 {[%clk 0:00:02]} 36. Nf4 {[%clk 0:00:39]}  Rd7 {[%clk 0:00:01]} 37. Ne6 {[%clk 0:00:39]}  Qd6 {[%clk 0:00:01]} 38. Re2 {[%clk 0:00:32]}  Bf8 {[%clk 0:00:01]} 39. Rc2 {[%clk 0:00:31]}  Rxc2 {[%clk 0:00:01]} 40. Qxc2 {[%clk 0:00:32]}  Be7 {[%clk 0:00:01]} 41. Qb3 {[%clk 0:00:32]}  a6 {[%clk 0:00:02]} 42. a3 {[%clk 0:00:31]}  Kb7 {[%clk 0:00:02]} 43. Nf4 {[%clk 0:00:31]}  Qe5 {[%clk 0:00:01]} 44. Rxd5 {[%clk 0:00:29]}  Qc7 {[%clk 0:00:01]} 45. Rxd7 {[%clk 0:00:21]}  Qxd7 {[%clk 0:00:02]} 46. g4 {[%clk 0:00:19]}  Bd8 {[%clk 0:00:01]} 47. Qd5+ {[%clk 0:00:18]}  Qxd5 {[%clk 0:00:01]} 48. Nxd5 {[%clk 0:00:18]}  Kc6 {[%clk 0:00:02]} 49. Nc3 {[%clk 0:00:17]}  Kd6 {[%clk 0:00:02]} 50. Nxe4+ {[%clk 0:00:16]}  Ke5 {[%clk 0:00:03]} 51. Nc5 {[%clk 0:00:16]}  Kd5 {[%clk 0:00:02]} 52. Nxa6 {[%clk 0:00:14]}  Ke4 {[%clk 0:00:02]} 53. Kc2 {[%clk 0:00:06]}  Kxe3 {[%clk 0:00:02]} 54. Nb4 {[%clk 0:00:06]}  Kf4 {[%clk 0:00:02]} 55. Kd3 {[%clk 0:00:05]}  Kxg4 {[%clk 0:00:01]} 56. Ke4 {[%clk 0:00:06]}  Kg5 {[%clk 0:00:01]} 57. Nc6 {[%clk 0:00:05]}  Bc7 {[%clk 0:00:01]} 58. Nd4 {[%clk 0:00:05]}  b4 {[%clk 0:00:01]} 59. axb4 {[%clk 0:00:05]}  Bd6 {[%clk 0:00:01]} 60. b5 {[%clk 0:00:05]}  Kh6 {[%clk 0:00:01]} 61. b6 {[%clk 0:00:05]}  Bc5 {[%clk 0:00:01]} 62. b7 {[%clk 0:00:06]}  Ba7 {[%clk 0:00:01]} 63. Nc6 {[%clk 0:00:07]} 1-0

[Event "January 9 Early 2024"]
[Site "https://www.chess.com"]
[Date "2024.01.11"]
[Round "3"]
[White "Urbina Perez, Juan Antonio"]
[Black "Klimkowski, Jan"]
[Result "0-1"]
[Board "285"]
[TimeControl "180+1"]
[WhiteFideId "2217368"]
[BlackFideId "21856222"]
[WhiteElo "2525"]
[BlackElo "2937"]
[WhiteTeam "ESP"]
[BlackTeam "POL"]
[WhiteClock "0:00:11"]
[BlackClock "0:00:19"]

1. d4 {[%clk 0:03:00]}  Nf6 {[%clk 0:03:00]} 2. Nf3 {[%clk 0:02:58]}  d5 {[%clk 0:03:00]} 3. c4 {[%clk 0:02:58]}  e6 {[%clk 0:03:01]} 4. g3 {[%clk 0:02:58]}  Be7 {[%clk 0:02:59]} 5. Bg2 {[%clk 0:02:58]}  O-O {[%clk 0:03:00]} 6. O-O {[%clk 0:02:59]}  dxc4 {[%clk 0:03:00]} 7. Qc2 {[%clk 0:02:59]}  a6 {[%clk 0:03:00]} 8. a4 {[%clk 0:03:00]}  Bd7 {[%clk 0:03:00]} 9. Qxc4 {[%clk 0:02:57]}  Bc6 {[%clk 0:03:00]} 10. Bg5 {[%clk 0:02:56]}  Nbd7 {[%clk 0:02:59]} 11. Nc3 {[%clk 0:02:52]}  a5 {[%clk 0:02:56]} 12. Rfd1 {[%clk 0:02:49]}  h6 {[%clk 0:02:56]} 13. Bxf6 {[%clk 0:02:49]}  Nxf6 {[%clk 0:02:57]} 14. e3 {[%clk 0:02:45]}  Rc8 {[%clk 0:02:39]} 15. Rac1 {[%clk 0:02:41]}  Bb4 {[%clk 0:02:35]} 16. Ne5 {[%clk 0:02:26]}  Bxg2 {[%clk 0:02:34]} 17. Kxg2 {[%clk 0:02:27]}  c6 {[%clk 0:02:33]} 18. Nd3 {[%clk 0:02:22]}  Be7 {[%clk 0:02:24]} 19. Nc5 {[%clk 0:02:11]}  Qc7 {[%clk 0:02:09]} 20. N3e4 {[%clk 0:02:02]}  Nd5 {[%clk 0:02:07]} 21. Nc3 {[%clk 0:02:01]}  Nb4 {[%clk 0:01:58]} 22. Nd3 {[%clk 0:01:56]}  Qb6 {[%clk 0:01:42]} 23. Nxb4 {[%clk 0:01:54]}  Qxb4 {[%clk 0:01:43]} 24. Qxb4 {[%clk 0:01:53]}  Bxb4 {[%clk 0:01:38]} 25. Ne4 {[%clk 0:01:52]}  Rfd8 {[%clk 0:01:38]} 26. Nc5 {[%clk 0:01:46]}  b6 {[%clk 0:01:36]} 27. Nd3 {[%clk 0:01:45]}  Bd6 {[%clk 0:01:34]} 28. Rc2 {[%clk 0:01:39]}  Rc7 {[%clk 0:01:30]} 29. Rdc1 {[%clk 0:01:35]}  Rdc8 {[%clk 0:01:31]} 30. e4 {[%clk 0:01:32]}  Kf8 {[%clk 0:01:29]} 31. f4 {[%clk 0:01:30]}  Ke8 {[%clk 0:01:29]} 32. Kf3 {[%clk 0:01:29]}  Kd7 {[%clk 0:01:29]} 33. Ne5+ {[%clk 0:01:22]}  Bxe5 {[%clk 0:01:30]} 34. fxe5 {[%clk 0:01:23]}  c5 {[%clk 0:01:15]} 35. d5 {[%clk 0:01:21]}  f6 {[%clk 0:01:15]} 36. exf6 {[%clk 0:01:20]}  gxf6 {[%clk 0:01:16]} 37. dxe6+ {[%clk 0:01:09]}  Kxe6 {[%clk 0:01:17]} 38. Rd1 {[%clk 0:01:08]}  c4 {[%clk 0:01:09]} 39. Rcd2 {[%clk 0:01:07]}  Rc6 {[%clk 0:01:09]} 40. Kf4 {[%clk 0:01:06]}  Rg8 {[%clk 0:00:59]} 41. h3 {[%clk 0:00:59]}  Rg5 {[%clk 0:00:51]} 42. g4 {[%clk 0:00:53]}  b5 {[%clk 0:00:43]} 43. Rd8 {[%clk 0:00:43]}  b4 {[%clk 0:00:39]} 44. R1d7 {[%clk 0:00:35]}  Rg8 {[%clk 0:00:30]} 45. Rxg8 {[%clk 0:00:20]}  Kxd7 {[%clk 0:00:30]} 46. Rg7+ {[%clk 0:00:17]}  Ke6 {[%clk 0:00:30]} 47. Rb7 {[%clk 0:00:17]}  c3 {[%clk 0:00:17]} 48. bxc3 {[%clk 0:00:18]}  bxc3 {[%clk 0:00:18]} 49. Rb1 {[%clk 0:00:19]}  c2 {[%clk 0:00:17]} 50. Rc1 {[%clk 0:00:19]}  Rc3 {[%clk 0:00:17]} 51. h4 {[%clk 0:00:18]}  Rc4 {[%clk 0:00:17]} 52. Ke3 {[%clk 0:00:15]}  Ke5 {[%clk 0:00:18]} 53. Kd3 {[%clk 0:00:16]}  Rd4+ {[%clk 0:00:17]} 54. Kxc2 {[%clk 0:00:14]}  Rc4+ {[%clk 0:00:12]} 55. Kd2 {[%clk 0:00:14]}  Rxc1 {[%clk 0:00:13]} 56. Kxc1 {[%clk 0:00:15]}  Kxe4 {[%clk 0:00:13]} 57. Kd2 {[%clk 0:00:15]}  Kf4 {[%clk 0:00:14]} 58. g5 {[%clk 0:00:14]}  fxg5 {[%clk 0:00:14]} 59. hxg5 {[%clk 0:00:15]}  hxg5 {[%clk 0:00:14]} 60. Ke2 {[%clk 0:00:15]}  Kg3 {[%clk 0:00:15]} 61. Kd3 {[%clk 0:00:11]}  g4 {[%clk 0:00:15]} 62. Kc4 {[%clk 0:00:12]}  Kf4 {[%clk 0:00:15]} 63. Kb5 {[%clk 0:00:13]}  g3 {[%clk 0:00:16]} 64. Kxa5 {[%clk 0:00:14]}  g2 {[%clk 0:00:17]} 65. Kb6 {[%clk 0:00:14]}  g1=Q+ {[%clk 0:00:18]} 66. Kc6 {[%clk 0:00:12]}  Qa1 {[%clk 0:00:18]} 67. Kb5 {[%clk 0:00:11]}  Qb2+ {[%clk 0:00:18]} 68. Kc5 {[%clk 0:00:10]}  Qa3+ {[%clk 0:00:19]} 69. Kb5 {[%clk 0:00:11]}  Qb3+ {[%clk 0:00:19]} 0-1

[Event "January 9 Early 2024"]
[Site "https://www.chess.com"]
[Date "2024.01.11"]
[Round "3"]
[White "Blahynka, Martin"]
[Black "Ambartsumova, Karina"]
[Result "1-0"]
[Board "286"]
[TimeControl "180+1"]
[WhiteFideId "334766"]
[BlackFideId "4166299"]
[WhiteElo "2440"]
[BlackElo "2608"]
[WhiteTeam "CZE"]
[BlackTeam "RUS"]
[WhiteClock "0:00:05"]
[BlackClock "0:00:07"]

1. c4 {[%clk 0:03:00]}  e5 {[%clk 0:02:57]} 2. Nc3 {[%clk 0:03:00]}  f5 {[%clk 0:02:57]} 3. g3 {[%clk 0:02:59]}  d6 {[%clk 0:02:57]} 4. Bg2 {[%clk 0:02:59]}  Nf6 {[%clk 0:02:58]} 5. Nf3 {[%clk 0:03:00]}  Be7 {[%clk 0:02:58]} 6. O-O {[%clk 0:02:59]}  O-O {[%clk 0:02:59]} 7. d4 {[%clk 0:02:53]}  e4 {[%clk 0:02:57]} 8. Ne1 {[%clk 0:02:53]}  c6 {[%clk 0:02:55]} 9. d5 {[%clk 0:02:48]}  Na6 {[%clk 0:02:46]} 10. f3 {[%clk 0:02:47]}  exf3 {[%clk 0:02:25]} 11. Nxf3 {[%clk 0:02:42]}  Nc5 {[%clk 0:02:18]} 12. dxc6 {[%clk 0:02:36]}  bxc6 {[%clk 0:02:10]} 13. Nd4 {[%clk 0:02:36]}  Qb6 {[%clk 0:01:59]} 14. Nxc6 {[%clk 0:02:32]}  Nce4+ {[%clk 0:01:36]} 15. Nd4 {[%clk 0:02:17]}  Nxc3 {[%clk 0:01:16]} 16. bxc3 {[%clk 0:02:17]}  Ne4 {[%clk 0:01:17]} 17. Qb3 {[%clk 0:01:52]}  Qc5 {[%clk 0:00:56]} 18. Ba3 {[%clk 0:01:48]}  Qe5 {[%clk 0:00:36]} 19. c5+ {[%clk 0:01:30]}  Kh8 {[%clk 0:00:28]} 20. Nc6 {[%clk 0:01:30]}  Be6 {[%clk 0:00:10]} 21. Nxe5 {[%clk 0:01:23]}  Bxb3 {[%clk 0:00:11]} 22. cxd6 {[%clk 0:01:23]}  Bf6 {[%clk 0:00:10]} 23. Nd7 {[%clk 0:01:15]}  Bc4 {[%clk 0:00:10]} 24. Nxf8 {[%clk 0:01:05]}  Rxf8 {[%clk 0:00:11]} 25. Rxf5 {[%clk 0:00:50]}  Nxc3 {[%clk 0:00:10]} 26. d7 {[%clk 0:00:23]}  Rd8 {[%clk 0:00:09]} 27. Bc6 {[%clk 0:00:18]}  Nxe2+ {[%clk 0:00:09]} 28. Kh1 {[%clk 0:00:16]}  Bxa1 {[%clk 0:00:09]} 29. Be7 {[%clk 0:00:10]}  Rb8 {[%clk 0:00:09]} 30. d8=Q+ {[%clk 0:00:08]}  Rxd8 {[%clk 0:00:10]} 31. Bxd8 {[%clk 0:00:09]}  h6 {[%clk 0:00:09]} 32. Be4 {[%clk 0:00:08]}  Kg8 {[%clk 0:00:08]} 33. Be7 {[%clk 0:00:06]}  g6 {[%clk 0:00:07]} 34. Bd5+ {[%clk 0:00:03]}  Kg7 {[%clk 0:00:05]} 35. Bxc4 {[%clk 0:00:03]}  gxf5 {[%clk 0:00:06]} 36. Bxe2 {[%clk 0:00:03]}  Kf7 {[%clk 0:00:06]} 37. Bc5 {[%clk 0:00:03]}  a5 {[%clk 0:00:06]} 38. Bb5 {[%clk 0:00:04]}  Bc3 {[%clk 0:00:06]} 39. Bb6 {[%clk 0:00:04]}  Ke6 {[%clk 0:00:06]} 40. Kg2 {[%clk 0:00:04]}  Ke5 {[%clk 0:00:06]} 41. Kf3 {[%clk 0:00:05]}  Kf6 {[%clk 0:00:06]} 42. Bd8+ {[%clk 0:00:04]}  Kg6 {[%clk 0:00:06]} 43. Bc7 {[%clk 0:00:04]}  Kf6 {[%clk 0:00:06]} 44. h3 {[%clk 0:00:05]}  h5 {[%clk 0:00:06]} 45. h4 {[%clk 0:00:03]}  Kg6 {[%clk 0:00:06]} 46. Be8+ {[%clk 0:00:03]}  Kh6 {[%clk 0:00:07]} 47. Bf4+ {[%clk 0:00:03]}  Kg7 {[%clk 0:00:07]} 48. Bxh5 {[%clk 0:00:04]}  Kf6 {[%clk 0:00:07]} 49. Be8 {[%clk 0:00:04]}  Ke7 {[%clk 0:00:07]} 50. Bb5 {[%clk 0:00:05]}  Kf6 {[%clk 0:00:07]} 51. Bg5+ {[%clk 0:00:05]}  Kg6 {[%clk 0:00:08]} 52. Bd8 {[%clk 0:00:05]}  Kf7 {[%clk 0:00:08]} 53. Kf4 {[%clk 0:00:05]}  Kg6 {[%clk 0:00:08]} 54. Be8+ {[%clk 0:00:05]}  Kg7 {[%clk 0:00:08]} 55. Kxf5 {[%clk 0:00:05]}  Be1 {[%clk 0:00:08]} 56. Bc7 {[%clk 0:00:04]}  Kf8 {[%clk 0:00:07]} 57. Bc6 {[%clk 0:00:05]}  Bd2 {[%clk 0:00:06]} 58. g4 {[%clk 0:00:04]}  Kg7 {[%clk 0:00:07]} 59. g5 {[%clk 0:00:05]}  Kh7 {[%clk 0:00:07]} 60. h5 {[%clk 0:00:06]}  Bc1 {[%clk 0:00:07]} 61. Be5 {[%clk 0:00:06]}  a4 {[%clk 0:00:07]} 62. Bf4 {[%clk 0:00:06]}  Kg8 {[%clk 0:00:07]} 63. Bxc1 {[%clk 0:00:05]}  a3 {[%clk 0:00:07]} 64. Bxa3 {[%clk 0:00:05]} 1-0

[Event "January 9 Early 2024"]
[Site "https://www.chess.com"]
[Date "2024.01.11"]
[Round "3"]
[White "Kraiouchkine, Nikita"]
[Black "Malikova, Marjona"]
[Result "1-0"]
[Board "288"]
[TimeControl "180+1"]
[WhiteFideId "2607140"]
[BlackFideId "14212463"]
[WhiteElo "2625"]
[BlackElo "2294"]
[WhiteTeam "CAN"]
[BlackTeam "UZB"]
[WhiteClock "0:00:07"]
[BlackClock "0:00:15"]

1. e4 {[%clk 0:03:00]}  c6 {[%clk 0:02:57]} 2. d4 {[%clk 0:02:57]}  d5 {[%clk 0:02:58]} 3. Nc3 {[%clk 0:02:56]}  dxe4 {[%clk 0:02:58]} 4. Nxe4 {[%clk 0:02:56]}  Bf5 {[%clk 0:02:59]} 5. Ng3 {[%clk 0:02:52]}  Bg6 {[%clk 0:02:59]} 6. h4 {[%clk 0:02:53]}  h6 {[%clk 0:02:59]} 7. Nf3 {[%clk 0:02:53]}  Nd7 {[%clk 0:02:59]} 8. h5 {[%clk 0:02:53]}  Bh7 {[%clk 0:02:59]} 9. Bd3 {[%clk 0:02:53]}  Bxd3 {[%clk 0:03:00]} 10. Qxd3 {[%clk 0:02:54]}  e6 {[%clk 0:03:01]} 11. Bf4 {[%clk 0:02:54]}  Qa5+ {[%clk 0:03:00]} 12. Bd2 {[%clk 0:02:54]}  Bb4 {[%clk 0:03:01]} 13. c3 {[%clk 0:02:55]}  Be7 {[%clk 0:03:02]} 14. c4 {[%clk 0:02:52]}  Qc7 {[%clk 0:03:02]} 15. O-O-O {[%clk 0:02:47]}  Ngf6 {[%clk 0:03:03]} 16. Kb1 {[%clk 0:02:44]}  O-O {[%clk 0:03:00]} 17. Ne4 {[%clk 0:02:44]}  Nxe4 {[%clk 0:02:59]} 18. Qxe4 {[%clk 0:02:45]}  Nf6 {[%clk 0:03:00]} 19. Qe2 {[%clk 0:02:45]}  b5 {[%clk 0:02:55]} 20. Ne5 {[%clk 0:02:36]}  bxc4 {[%clk 0:02:51]} 21. Qxc4 {[%clk 0:02:33]}  c5 {[%clk 0:02:50]} 22. Nd3 {[%clk 0:02:19]}  Rfc8 {[%clk 0:02:31]} 23. Rc1 {[%clk 0:02:10]}  Ne4 {[%clk 0:02:30]} 24. Be3 {[%clk 0:02:09]}  Bg5 {[%clk 0:02:20]} 25. Bxg5 {[%clk 0:01:56]}  hxg5 {[%clk 0:02:20]} 26. Rc2 {[%clk 0:01:29]}  Qa5 {[%clk 0:02:11]} 27. Rd1 {[%clk 0:01:17]}  cxd4 {[%clk 0:01:57]} 28. Qxc8+ {[%clk 0:01:15]}  Rxc8 {[%clk 0:01:58]} 29. Rxc8+ {[%clk 0:01:16]}  Kh7 {[%clk 0:01:59]} 30. Rc2 {[%clk 0:01:12]}  Qb5 {[%clk 0:01:50]} 31. Ka1 {[%clk 0:01:10]}  e5 {[%clk 0:01:48]} 32. f3 {[%clk 0:01:05]}  Nd6 {[%clk 0:01:44]} 33. Rc5 {[%clk 0:00:55]}  Qa4 {[%clk 0:01:41]} 34. b3 {[%clk 0:00:55]}  Qa3 {[%clk 0:01:14]} 35. Rxe5 {[%clk 0:00:53]}  a5 {[%clk 0:01:13]} 36. Rxg5 {[%clk 0:00:36]}  a4 {[%clk 0:01:13]} 37. Ra5 {[%clk 0:00:34]}  Nf5 {[%clk 0:00:18]} 38. Rxa4 {[%clk 0:00:16]}  Qd6 {[%clk 0:00:17]} 39. Rc1 {[%clk 0:00:12]}  Ne3 {[%clk 0:00:17]} 40. Kb2 {[%clk 0:00:11]}  Nxg2 {[%clk 0:00:16]} 41. Rac4 {[%clk 0:00:08]}  Ne3 {[%clk 0:00:17]} 42. Rc5 {[%clk 0:00:08]}  Qh2+ {[%clk 0:00:17]} 43. Ka3 {[%clk 0:00:06]}  Qd2 {[%clk 0:00:17]} 44. Nb4 {[%clk 0:00:05]}  d3 {[%clk 0:00:16]} 45. R5c3 {[%clk 0:00:04]}  Nc2+ {[%clk 0:00:15]} 46. R3xc2 {[%clk 0:00:03]}  dxc2 {[%clk 0:00:16]} 47. Rxc2 {[%clk 0:00:04]}  Qd6 {[%clk 0:00:15]} 48. Ka4 {[%clk 0:00:03]}  Qf4 {[%clk 0:00:15]} 49. Rc4 {[%clk 0:00:03]}  Qxf3 {[%clk 0:00:15]} 50. Kb5 {[%clk 0:00:04]}  Qxh5+ {[%clk 0:00:15]} 51. Rc5 {[%clk 0:00:04]}  Qd1 {[%clk 0:00:16]} 52. a4 {[%clk 0:00:03]}  Qxb3 {[%clk 0:00:16]} 53. a5 {[%clk 0:00:03]}  f5 {[%clk 0:00:16]} 54. a6 {[%clk 0:00:04]}  f4 {[%clk 0:00:15]} 55. a7 {[%clk 0:00:03]}  Qa3 {[%clk 0:00:16]} 56. Na6 {[%clk 0:00:04]}  Qd3+ {[%clk 0:00:16]} 57. Kb6 {[%clk 0:00:04]}  Qd8+ {[%clk 0:00:16]} 58. Kb7 {[%clk 0:00:04]}  f3 {[%clk 0:00:15]} 59. a8=Q {[%clk 0:00:04]}  Qxa8+ {[%clk 0:00:16]} 60. Kxa8 {[%clk 0:00:05]}  Kg6 {[%clk 0:00:16]} 61. Nb4 {[%clk 0:00:05]}  f2 {[%clk 0:00:15]} 62. Rc1 {[%clk 0:00:05]}  Kf5 {[%clk 0:00:16]} 63. Nd3 {[%clk 0:00:05]}  Ke4 {[%clk 0:00:15]} 64. Nxf2+ {[%clk 0:00:06]}  Kf3 {[%clk 0:00:16]} 65. Nh3 {[%clk 0:00:06]}  Kg3 {[%clk 0:00:15]} 66. Rg1+ {[%clk 0:00:06]}  Kxh3 {[%clk 0:00:15]} 67. Rxg7 {[%clk 0:00:07]} 1-0

[Event "January 9 Early 2024"]
[Site "https://www.chess.com"]
[Date "2024.01.11"]
[Round "3"]
[White "Krstulovic, Alex"]
[Black "Maksimovic, Bojan"]
[Result "0-1"]
[Board "289"]
[TimeControl "180+1"]
[WhiteFideId "760056"]
[BlackFideId "14408120"]
[WhiteElo "2675"]
[BlackElo "2911"]
[WhiteTeam "HUN"]
[BlackTeam "BIH"]
[WhiteClock "0:00:08"]
[BlackClock "0:00:05"]

1. d4 {[%clk 0:02:57]}  Nf6 {[%clk 0:03:00]} 2. Nf3 {[%clk 0:02:57]}  d6 {[%clk 0:02:59]} 3. c4 {[%clk 0:02:57]}  g6 {[%clk 0:02:57]} 4. Nc3 {[%clk 0:02:57]}  Bg7 {[%clk 0:02:57]} 5. e4 {[%clk 0:02:58]}  O-O {[%clk 0:02:56]} 6. Be2 {[%clk 0:02:58]}  Nbd7 {[%clk 0:02:57]} 7. O-O {[%clk 0:02:59]}  e5 {[%clk 0:02:57]} 8. Qc2 {[%clk 0:02:59]}  c6 {[%clk 0:02:57]} 9. d5 {[%clk 0:02:59]}  c5 {[%clk 0:02:58]} 10. Bg5 {[%clk 0:02:59]}  h6 {[%clk 0:02:57]} 11. Bd2 {[%clk 0:02:59]}  Nh7 {[%clk 0:02:53]} 12. g3 {[%clk 0:02:59]}  Kh8 {[%clk 0:02:51]} 13. Rab1 {[%clk 0:02:57]}  h5 {[%clk 0:02:41]} 14. b4 {[%clk 0:02:46]}  b6 {[%clk 0:02:41]} 15. bxc5 {[%clk 0:02:45]}  Nxc5 {[%clk 0:02:10]} 16. a4 {[%clk 0:02:27]}  Bd7 {[%clk 0:01:39]} 17. Rb2 {[%clk 0:01:34]}  Bf6 {[%clk 0:01:24]} 18. Ra1 {[%clk 0:01:32]}  Ng5 {[%clk 0:01:17]} 19. Nxg5 {[%clk 0:01:29]}  Bxg5 {[%clk 0:01:18]} 20. Bxg5 {[%clk 0:01:14]}  Qxg5 {[%clk 0:01:19]} 21. h4 {[%clk 0:01:15]}  Qd8 {[%clk 0:01:11]} 22. Qd2 {[%clk 0:01:11]}  Kg7 {[%clk 0:01:08]} 23. Bf3 {[%clk 0:00:52]}  Qc7 {[%clk 0:01:03]} 24. a5 {[%clk 0:00:51]}  bxa5 {[%clk 0:00:58]} 25. Nb5 {[%clk 0:00:50]}  Bxb5 {[%clk 0:00:57]} 26. Rxb5 {[%clk 0:00:51]}  a4 {[%clk 0:00:56]} 27. Bxh5 {[%clk 0:00:47]}  Nb3 {[%clk 0:00:39]} 28. Rxb3 {[%clk 0:00:25]}  axb3 {[%clk 0:00:39]} 29. Be2 {[%clk 0:00:26]}  Rab8 {[%clk 0:00:33]} 30. h5 {[%clk 0:00:26]}  Qb6 {[%clk 0:00:19]} 31. Qg5 {[%clk 0:00:15]}  Qd8 {[%clk 0:00:15]} 32. Qd2 {[%clk 0:00:09]}  b2 {[%clk 0:00:15]} 33. Rb1 {[%clk 0:00:09]}  Qb6 {[%clk 0:00:16]} 34. Qg5 {[%clk 0:00:09]}  Qd8 {[%clk 0:00:12]} 35. Qd2 {[%clk 0:00:09]}  Qb6 {[%clk 0:00:05]} 36. Qg5 {[%clk 0:00:09]}  Rb7 {[%clk 0:00:06]} 37. Kg2 {[%clk 0:00:05]}  Qd8 {[%clk 0:00:05]} 38. Qd2 {[%clk 0:00:05]}  Qf6 {[%clk 0:00:04]} 39. Rxb2 {[%clk 0:00:03]}  Rxb2 {[%clk 0:00:04]} 40. Qxb2 {[%clk 0:00:04]}  gxh5 {[%clk 0:00:05]} 41. Qa3 {[%clk 0:00:05]}  h4 {[%clk 0:00:05]} 42. gxh4 {[%clk 0:00:05]}  Qxh4 {[%clk 0:00:05]} 43. Qxa7 {[%clk 0:00:05]}  Qg5+ {[%clk 0:00:05]} 44. Kf1 {[%clk 0:00:06]}  Rh8 {[%clk 0:00:06]} 45. Bf3 {[%clk 0:00:07]}  Qf4 {[%clk 0:00:04]} 46. Qa3 {[%clk 0:00:06]}  Rh2 {[%clk 0:00:04]} 47. Bg2 {[%clk 0:00:05]}  Rh6 {[%clk 0:00:03]} 48. Qc3 {[%clk 0:00:05]}  Qg4 {[%clk 0:00:03]} 49. f3 {[%clk 0:00:05]}  Qg3 {[%clk 0:00:02]} 50. Qb2 {[%clk 0:00:05]}  Rg6 {[%clk 0:00:02]} 51. Qf2 {[%clk 0:00:05]}  Qf4 {[%clk 0:00:03]} 52. Qe1 {[%clk 0:00:04]}  Rh6 {[%clk 0:00:03]} 53. Kg1 {[%clk 0:00:04]}  Rh8 {[%clk 0:00:03]} 54. c5 {[%clk 0:00:03]}  dxc5 {[%clk 0:00:03]} 55. Qf2 {[%clk 0:00:04]}  Qc1+ {[%clk 0:00:02]} 56. Bf1 {[%clk 0:00:05]}  Qg5+ {[%clk 0:00:02]} 57. Bg2 {[%clk 0:00:05]}  Qc1+ {[%clk 0:00:03]} 58. Bf1 {[%clk 0:00:05]}  Kf6 {[%clk 0:00:02]} 59. d6 {[%clk 0:00:04]}  Rg8+ {[%clk 0:00:02]} 60. Kh1 {[%clk 0:00:04]}  Qh6+ {[%clk 0:00:02]} 61. Qh2 {[%clk 0:00:05]}  Qxh2+ {[%clk 0:00:03]} 62. Kxh2 {[%clk 0:00:06]}  Ke6 {[%clk 0:00:04]} 63. d7 {[%clk 0:00:07]}  Kxd7 {[%clk 0:00:04]} 64. Bh3+ {[%clk 0:00:08]}  Kd6 {[%clk 0:00:05]} 65. Bf5 {[%clk 0:00:08]}  f6 {[%clk 0:00:05]} 0-1